fUSD/lending_fUSD_20260327
["ID","MTS","AMOUNT","RATE_DAILY","PERIOD"]
[418957041,1774653039912,-500.0,0.00015306,2]
[418957042,1774653039922,-500.0,0.00015306,2]
[418957043,1774653039931,-576.86,0.00015306,2]
[418957044,1774653039941,-576.86,0.00015306,2]
[418957045,1774653039950,-576.86,0.00015306,2]
[418957046,1774653039960,-576.86,0.00015306,2]
[418957047,1774653039969,-576.86,0.00015306,2]
[418957048,1774653039978,-576.86,0.00015306,2]
[418957049,1774653039988,-500.0,0.00015306,2]
[418957050,1774653039998,-500.0,0.00015306,2]
[418957051,1774653040007,-500.0,0.00015306,2]
[418957052,1774653040017,-500.0,0.00015306,2]
[418957053,1774653040027,-500.0,0.00015306,2]
[418957054,1774653040036,-500.0,0.00015306,2]
[418957055,1774653040046,-500.0,0.00015306,2]
[418957056,1774653040056,-1095.88,0.00015306,2]
[418957057,1774653040065,-1095.88,0.00015306,2]
[418957058,1774653040075,-1095.88,0.00015306,2]
[418957059,1774653040084,-1095.88,0.00015306,2]
[418957060,1774653040094,-1095.88,0.00015306,2]
[418957061,1774653040103,-1095.88,0.00015306,2]
[418957062,1774653040113,-1095.88,0.00015306,2]
[418957063,1774653040122,-500.0,0.00015306,2]
[418957064,1774653040132,-500.0,0.00015306,2]
[418957065,1774653040142,-500.0,0.00015306,2]
[418957066,1774653040152,-500.0,0.00015306,2]
[418957067,1774653040162,-500.0,0.00015306,2]
[418957068,1774653040171,-186.38309741,0.00015306,2]
[418957069,1774653040181,-500.0,0.00015306,2]
[418957070,1774653040190,-500.0,0.00015306,2]
[418957071,1774653040200,-500.0,0.00015306,2]
[418957072,1774653040209,-500.0,0.00015306,2]
[418957073,1774653040219,-500.0,0.00015306,2]
[418957074,1774653040228,-500.0,0.00015306,2]
[418957075,1774653040238,-500.0,0.00015306,2]
[418957076,1774653040248,-619.54,0.00015306,2]
[418957077,1774653040257,-619.54,0.00015306,2]
[418957078,1774653040267,-619.54,0.00015306,2]
[418957079,1774653040276,-619.54,0.00015306,2]
[418957080,1774653040286,-619.54,0.00015306,2]
[418957081,1774653040296,-619.54,0.00015306,2]
[418957082,1774653040306,-619.54,0.00015306,2]
[418957083,1774653040316,-500.0,0.00015306,2]
[418957084,1774653040326,-500.0,0.00015306,2]
[418957085,1774653040336,-500.0,0.00015306,2]
[418957086,1774653040346,-500.0,0.00015306,2]
[418957087,1774653040355,-500.0,0.00015306,2]
[418957088,1774653040365,-500.0,0.00015306,2]
[418957089,1774653040375,-500.0,0.00015306,2]
[418957090,1774653040384,-500.0,0.00015306,2]
[418957091,1774653040394,-500.0,0.00015306,2]
[418957092,1774653040403,-500.0,0.00015306,2]
[418957093,1774653040414,-500.0,0.00015306,2]
[418957094,1774653040424,-500.0,0.00015306,2]
[418957095,1774653040588,-500.0,0.00015306,2]
[418957096,1774653040598,-500.0,0.00015306,2]
[418957097,1774653040607,-500.0,0.00015306,2]
[418957098,1774653040617,-500.0,0.00015306,2]
[418957099,1774653040626,-500.0,0.00015306,2]
[418957100,1774653040635,-500.0,0.00015306,2]
[418957101,1774653040645,-500.0,0.00015306,2]
[418957102,1774653040654,-265315.05095299,0.00015307,2]
[418957103,1774653040667,-500.0,0.00015307,2]
[418957104,1774653040769,-1234184.94904701,0.00015307,2]
[418957105,1774653040778,-9999.99,0.0001531,2]
[418957106,1774653040789,-2456.65,0.0001531,2]
[418957107,1774653040799,-499.99,0.0001531,2]
[418957108,1774653040809,-150.99,0.0001531,2]
[418957109,1774653040818,-5363.55,0.0001531,2]
[418957110,1774653040828,-9350.87,0.0001531,2]
[418957111,1774653040838,-20004.97,0.0001531,2]
[418957112,1774653040848,-299.99,0.0001531,2]
[418957113,1774653040858,-8984.37,0.0001531,2]
[418957114,1774653040868,-1030.97,0.0001531,2]
[418957115,1774653040877,-32994.9848,0.00015318,2]
[418957116,1774653040887,-1000.0,0.00015318,2]
[418957117,1774653040896,-900.0,0.00015319,2]
[418957118,1774653040906,-1573.115084,0.00015333,2]
[418957119,1774653040916,-214.0,0.00015363,2]
[418957120,1774653040926,-7799.017878,0.00015363,2]
[418957121,1774653040935,-1438.101202,0.00015363,2]
[418957122,1774653040944,-420.0,0.0001537,2]
[418957123,1774653040955,-500.0,0.00015373,2]
[418957124,1774653040964,-500.0,0.00015373,2]
[418957126,1774653040973,-500.0,0.00015373,2]
[418957128,1774653040983,-500.0,0.00015373,2]
[418957130,1774653040992,-500.96601954,0.00015373,2]
[418957132,1774653041002,-500.0,0.00015373,2]
[418957134,1774653041011,-500.0,0.00015373,2]
[418957136,1774653041020,-500.0,0.00015373,2]
[418957138,1774653041029,-500.0,0.00015373,2]
[418957140,1774653041038,-500.0,0.00015373,2]
[418957142,1774653041047,-500.0,0.00015373,2]
[418957144,1774653041057,-500.0,0.00015373,2]
[418957146,1774653041066,-500.0,0.00015373,2]
[418957148,1774653041075,-500.0,0.00015373,2]
[418957150,1774653041084,-500.0,0.00015373,2]
[418957152,1774653041094,-500.0,0.00015373,2]
[418957154,1774653041103,-500.0,0.00015373,2]
[418957156,1774653041112,-500.0,0.00015373,2]
[418957158,1774653041122,-500.0,0.00015373,2]
[418957160,1774653041131,-500.0,0.00015373,2]
[418957162,1774653041140,-500.0,0.00015373,2]
[418957164,1774653041150,-500.0,0.00015373,2]
[418957166,1774653041159,-160.15377338,0.00015373,2]
[418957168,1774653041168,-500.0,0.00015373,2]
[418957170,1774653041177,-500.0,0.00015373,2]
[418957172,1774653041186,-500.0,0.00015373,2]
[418957174,1774653041195,-500.0,0.00015373,2]
[418957176,1774653041205,-598.74889834,0.00015373,2]
[418957178,1774653041213,-500.0,0.00015373,2]
[418957180,1774653041222,-500.52239873,0.00015373,2]
[418957182,1774653041231,-500.0,0.00015373,2]
[418957184,1774653041240,-500.0,0.00015373,2]
[418957186,1774653041249,-500.0,0.00015373,2]
[418957187,1774653041259,-308.60230937,0.00015373,2]
[418957188,1774653041268,-500.0,0.00015373,2]
[418957189,1774653041277,-606.98804759,0.00015373,2]
[418957190,1774653041287,-518.16075084,0.00015373,2]
[418957191,1774653041296,-210.78762468,0.00015373,2]
[418957192,1774653041306,-500.0,0.00015373,2]
[418957193,1774653041315,-500.0,0.00015373,2]
[418957194,1774653041325,-162.55051425,0.00015373,2]
[418957195,1774653041335,-500.0,0.00015373,2]
[418957196,1774653041344,-500.0,0.00015373,2]
[418957197,1774653041354,-500.0,0.00015373,2]
[418957198,1774653041363,-339.37607732,0.00015373,2]
[418957199,1774653041373,-500.0,0.00015373,2]
[418957200,1774653041382,-500.0,0.00015373,2]
[418957201,1774653041391,-160.29114092,0.00015373,2]
[418957202,1774653041401,-569.02268013,0.00015373,2]
[418957203,1774653041410,-500.0,0.00015373,2]
[418957204,1774653041419,-16162.63602922,0.00015383,2]
[418957205,1774653041428,-287.0,0.0001539,2]
[418957206,1774653041438,-511.99771912,0.000154,2]
[418957207,1774653041447,-168.0,0.00015416,2]
[418957208,1774653041456,-500.0,0.00015417,2]
[418957209,1774653041465,-500.0,0.00015417,2]
[418957210,1774653041475,-500.0,0.00015417,2]
[418957211,1774653041484,-500.0,0.00015417,2]
[418957212,1774653041493,-615.96,0.00015417,2]
[418957213,1774653041504,-615.96,0.00015417,2]
[418957214,1774653041518,-500.0,0.00015417,2]
[418957215,1774653041528,-500.0,0.00015417,2]
[418957216,1774653041538,-500.0,0.00015417,2]
[418957217,1774653041548,-500.0,0.00015417,2]
[418957218,1774653041557,-150.0,0.00015452,2]
[418957219,1774653041566,-150.0,0.00015452,2]
[418957220,1774653041575,-150.0,0.00015452,2]
[418957221,1774653041584,-195.44774764,0.00015452,2]
[418957222,1774653041594,-16162.63602922,0.00015469,2]
[418957223,1774653041603,-500.0,0.00015472,2]
[418957224,1774653041612,-1230.04864442,0.000155,2]
[418957225,1774653041621,-775.03897,0.00015504,2]
[418957226,1774653041630,-2749.04,0.00015507,2]
[418957227,1774653041640,-200.0,0.00015518,2]
[418957228,1774653041651,-1135.79231896,0.00015527,2]
[418957229,1774653041661,-16162.63602922,0.00015556,2]
[418957230,1774653041670,-713.24,0.00015558,2]
[418957231,1774653041679,-727.73,0.00015558,2]
[418957232,1774653041689,-576.86,0.00015558,2]
[418957233,1774653041698,-500.0,0.00015558,2]
[418957234,1774653041707,-500.0,0.00015558,2]
[418957235,1774653041717,-478.4774918,0.00015559,2]
[418957236,1774653041726,-287.0,0.00015568,2]
[418957237,1774653041735,-6803.607822,0.00015579,2]
[418957238,1774653041744,-3022.048926,0.00015582,2]
[418957239,1774653041753,-1451.95389475,0.00015587,2]
[418957240,1774653041763,-219.17615923,0.00015592,2]
[418957241,1774653041772,-4800.0,0.000156,5]
[418957242,1774653041781,-4800.30941075,0.000156,2]
[418957243,1774653041791,-2467.0,0.00015604,2]
[418957244,1774653041800,-6011.0,0.00015604,2]
[418957245,1774653041810,-3764.0,0.00015604,2]
[418957246,1774653041820,-16162.63602922,0.00015642,2]
[418957247,1774653041829,-500.0,0.0001566,2]
[418957248,1774653041838,-580.84,0.0001566,2]
[418957249,1774653041847,-500.0,0.0001566,2]
[418957250,1774653041856,-500.0,0.0001566,2]
[418957251,1774653041866,-500.0,0.00015677,2]
[418957252,1774653041875,-500.0,0.00015677,2]
[418957253,1774653041885,-500.0,0.00015677,2]
[418957254,1774653041893,-500.0,0.00015677,2]
[418957255,1774653041902,-500.0,0.00015677,2]
[418957256,1774653041911,-500.0,0.00015677,2]
[418957257,1774653041920,-580.84,0.00015677,2]
[418957258,1774653041929,-580.84,0.00015677,2]
[418957259,1774653041938,-580.84,0.00015677,2]
[418957260,1774653041947,-580.84,0.00015677,2]
[418957261,1774653041956,-580.84,0.00015677,2]
[418957262,1774653041966,-580.84,0.00015677,2]
[418957263,1774653041975,-500.0,0.00015677,2]
[418957264,1774653041984,-500.0,0.00015677,2]
[418957265,1774653041994,-500.0,0.00015677,2]
[418957266,1774653042003,-500.0,0.00015677,2]
[418957267,1774653042011,-500.0,0.00015677,2]
[418957268,1774653042020,-500.0,0.00015677,2]
[418957269,1774653042029,-500.0,0.00015677,2]
[418957270,1774653042038,-500.0,0.00015677,2]
[418957271,1774653042047,-500.0,0.00015677,2]
[418957272,1774653042056,-500.0,0.00015677,2]
[418957273,1774653042065,-500.0,0.00015677,2]
[418957274,1774653042074,-500.0,0.00015677,2]
[418957275,1774653042083,-581.19428026,0.0001568,2]
[418957276,1774653042093,-900.0,0.000157,5]
[418957277,1774653042102,-500.0,0.00015714,2]
[418957278,1774653042111,-500.0,0.00015714,2]
[418957279,1774653042121,-500.0,0.00015714,2]
[418957280,1774653042130,-16162.63602922,0.00015728,2]
[418957281,1774653042139,-560.585073,0.00015728,2]
[418957282,1774653042148,-560.585073,0.00015728,2]
[418957283,1774653042157,-560.585073,0.00015728,2]
[418957284,1774653042167,-560.585073,0.00015728,2]
[418957285,1774653042175,-151.0,0.00015728,2]
[418957286,1774653042184,-151.0,0.00015728,2]
[418957287,1774653042193,-151.0,0.00015728,2]
[418957288,1774653042202,-16352.72787707,0.0001573,2]
[418957289,1774653042212,-255.0,0.00015732,2]
[418957290,1774653042220,-500.0,0.00015745,2]
[418957291,1774653042229,-181.08010149,0.00015746,2]
[418957292,1774653042238,-235.0,0.00015753,2]
[418957293,1774653042248,-3598.69,0.00015753,2]
[418957294,1774653042257,-522.93260539,0.00015768,2]
[418957295,1774653042266,-500.0,0.00015768,2]
[418957296,1774653042276,-507.06187853,0.00015768,2]
[418957297,1774653042285,-501.74441407,0.00015768,2]
[418957298,1774653042294,-150.0,0.00015769,2]
[418957299,1774653042303,-150.0,0.00015769,2]
[418957300,1774653042312,-150.0,0.00015769,2]
[418957301,1774653042322,-150.0,0.00015769,2]
[418957302,1774653042331,-150.0,0.00015769,2]
[418957303,1774653042340,-150.0,0.00015769,2]
[418957304,1774653042349,-150.0,0.00015769,2]
[418957305,1774653042359,-150.0,0.00015769,2]
[418957306,1774653042368,-150.0,0.00015769,2]
[418957307,1774653042377,-3517.0,0.00015769,2]
[418957308,1774653042386,-1049.641,0.00015769,2]
[418957309,1774653042395,-163.71,0.00015769,2]
[418957310,1774653042406,-1359.817,0.00015769,2]
[418957311,1774653042415,-621.0,0.00015769,2]
[418957312,1774653042424,-274.97,0.00015769,2]
[418957313,1774653042433,-1263.426,0.00015769,2]
[418957314,1774653042442,-1224.449,0.00015769,2]
[418957315,1774653042451,-924.0,0.00015769,2]
[418957316,1774653042461,-297.36039013,0.00015783,2]
[418957317,1774653042471,-236.14849136,0.000158,2]
[418957318,1774653042480,-900.0,0.000158,5]
[418957319,1774653042488,-2256.5981328,0.00015807,2]
[418957320,1774653042498,-16162.63602922,0.00015814,2]
[418957321,1774653042508,-16352.72787707,0.00015815,2]
[418957322,1774653042517,-151.0,0.00015817,2]
[418957323,1774653042527,-151.0,0.00015817,2]
[418957324,1774653042536,-639.751231,0.00015817,2]
[418957325,1774653042546,-639.751231,0.00015817,2]
[418957329,1774653042556,-639.751231,0.00015817,2]
[418957331,1774653042565,-639.751231,0.00015817,2]
[418957334,1774653042574,-258.95747,0.00015817,2]
[418957336,1774653042584,-258.95747,0.00015817,2]
[418957339,1774653042593,-258.95747,0.00015817,2]
[418957341,1774653042602,-258.95747,0.00015817,2]
[418957344,1774653042611,-500.0,0.00015821,2]
[418957347,1774653042621,-549.11796288,0.00015821,2]
[418957352,1774653042630,-505.51596865,0.00015821,2]
[418957354,1774653042639,-157.121749,0.00015821,2]
[418957356,1774653042648,-157.121749,0.00015821,2]
[418957358,1774653042657,-157.121749,0.00015821,2]
[418957359,1774653042666,-157.121749,0.00015821,2]
[418957360,1774653042676,-151.291443,0.00015821,2]
[418957361,1774653042684,-151.0,0.00015821,2]
[418957362,1774653042693,-151.0,0.00015821,2]
[418957363,1774653042703,-151.0,0.00015821,2]
[418957364,1774653042712,-574.947997,0.00015821,2]
[418957365,1774653042721,-574.947997,0.00015821,2]
[418957366,1774653042730,-574.947997,0.00015821,2]
[418957367,1774653042739,-574.947997,0.00015821,2]
[418957368,1774653042748,-5103.9182356,0.00015831,2]
[418957369,1774653042757,-2761.6523059,0.00015831,2]
[418957370,1774653042767,-500.0,0.00015838,2]
[418957371,1774653042776,-615.96,0.00015838,2]
[418957372,1774653042785,-2166.874,0.00015856,2]
[418957373,1774653042794,-1005.520731,0.00015856,2]
[418957374,1774653042803,-1005.520731,0.00015856,2]
[418957375,1774653042813,-1005.520731,0.00015856,2]
[418957376,1774653042822,-1005.520731,0.00015856,2]
[418957377,1774653042831,-603.120261,0.00015856,2]
[418957378,1774653042840,-603.120261,0.00015856,2]
[418957379,1774653042849,-603.120261,0.00015856,2]
[418957380,1774653042858,-603.120261,0.00015856,2]
[418957381,1774653042868,-151.0,0.00015856,2]
[418957382,1774653042877,-151.0,0.00015856,2]
[418957383,1774653042885,-151.0,0.00015856,2]
[418957384,1774653042895,-500.0,0.00015862,2]
[418957385,1774653042904,-200.0,0.00015862,2]
[418957386,1774653042913,-287.0,0.00015889,2]
[418957387,1774653042922,-2749.04,0.00015895,2]
[418957388,1774653042931,-1835.0,0.00015897,5]
[418957389,1774653042940,-2797.0,0.00015897,5]
[418957390,1774653042950,-266.96211015,0.00015897,2]
[418957392,1774653042959,-713.24,0.00015899,2]
[418957395,1774653042968,-727.73,0.00015899,2]
[418957398,1774653042977,-576.86,0.00015899,2]
[418957400,1774653042987,-500.0,0.00015899,2]
[418957402,1774653042995,-500.0,0.00015899,2]
[418957404,1774653043004,-153.27466147,0.000159,2]
[418957405,1774653043014,-10000.0,0.000159,2]
[418957406,1774653043023,-3844.4003,0.000159,2]
[418957408,1774653043033,-16352.72787707,0.000159,2]
[418957410,1774653043042,-1135.79231896,0.000159,2]
[418957411,1774653043051,-900.0,0.000159,5]
[418957413,1774653043061,-16162.63602922,0.000159,2]
[418957414,1774653043071,-1451.95389475,0.000159,2]
[418957415,1774653043081,-219.17615923,0.000159,2]
[418957416,1774653043091,-478.4774918,0.000159,2]
[418957417,1774653043100,-4800.30941075,0.000159,2]
[418957418,1774653043110,-1000.0,0.00015921,2]
[418957419,1774653043120,-500.76787534,0.00015921,2]
[418957420,1774653043129,-500.0,0.00015921,2]
[418957421,1774653043139,-1000.0,0.00015921,2]
[418957422,1774653043148,-1003.47432567,0.00015921,2]
[418957425,1774653043258,-1000.0,0.00015921,2]
[418957426,1774653043285,-500.0,0.00015921,2]
[418957427,1774653043296,-1000.0,0.00015921,2]
[418957428,1774653043306,-1005.85933034,0.00015921,2]
[418957429,1774653043315,-1000.0,0.00015921,2]
[418957430,1774653043325,-1002.35924996,0.00015921,2]
[418957431,1774653043334,-1001.23288456,0.00015921,2]
[418957432,1774653043344,-1000.0,0.00015921,2]
[418957433,1774653043354,-1001.65522073,0.00015921,2]
[418957434,1774653043363,-1000.0,0.00015921,2]
[418957435,1774653043373,-1000.0,0.00015921,2]
[418957436,1774653043383,-1000.0,0.00015921,2]
[418957437,1774653043392,-501.31011535,0.00015921,2]
[418957438,1774653043401,-1000.0,0.00015921,2]
[418957439,1774653043411,-1000.0,0.00015921,2]
[418957440,1774653043420,-1001.38454067,0.00015921,2]
[418957441,1774653043429,-1000.0,0.00015921,2]
[418957442,1774653043439,-1000.0,0.00015921,2]
[418957443,1774653043448,-1000.0,0.00015921,2]
[418957444,1774653043458,-200.0,0.00015921,2]
[418957445,1774653043467,-500.0,0.00015921,2]
[418957446,1774653043476,-1000.0,0.00015921,2]
[418957447,1774653043486,-501.20618875,0.00015921,2]
[418957448,1774653043495,-500.0,0.00015921,2]
[418957449,1774653043505,-1000.0,0.00015921,2]
[418957450,1774653043515,-1000.0,0.00015921,2]
[418957451,1774653043524,-200.0,0.0001599,2]
[418957452,1774653043534,-200.0,0.0001599,2]
[418957453,1774653043544,-151.0,0.0001599,2]
[418957454,1774653043554,-200.0,0.0001599,2]
[418957455,1774653043563,-1000.0,0.0001599,2]
[418957456,1774653043573,-1000.0,0.0001599,2]
[418957457,1774653043583,-875.45520148,0.0001599,2]
[418957458,1774653043592,-287.89570314,0.0001599,2]
[418957459,1774653043602,-200.0,0.0001599,2]
[418957460,1774653043612,-1059.69462158,0.0001599,2]
[418957461,1774653043622,-1059.69462158,0.0001599,2]
[418957462,1774653043631,-420.0,0.00015993,2]
[418957463,1774653043640,-151.0,0.00015996,2]
[418957464,1774653043650,-151.0,0.00015997,2]
[418957465,1774653043659,-151.0,0.00015997,2]
[418957466,1774653043669,-155.0,0.00015998,2]
[418957467,1774653043678,-444.39005516,0.00015998,2]
[418957468,1774653043688,-500.0,0.00015998,2]
[418957469,1774653043697,-1095.88,0.00015998,2]
[418957470,1774653043707,-500.0,0.00015998,2]
[418957471,1774653043716,-619.54,0.00015998,2]
[418957472,1774653043725,-367.68926539,0.00015998,2]
[418957473,1774653043735,-666.0,0.00015999,2]
[418957474,1774653043744,-155.0,0.00015999,2]
[418957476,1774653043754,-500.0,0.00015999,2]
[418957478,1774653043763,-500.0,0.00015999,2]
[418957480,1774653043772,-500.0,0.00015999,2]
[418957482,1774653043782,-500.0,0.00015999,2]
[418957484,1774653043792,-500.0,0.00015999,2]
[418957486,1774653043802,-500.0,0.00015999,2]
[418957488,1774653043811,-500.0,0.00015999,2]
[418957490,1774653043820,-500.0,0.00015999,2]
[418957492,1774653043830,-500.0,0.00015999,2]
[418957494,1774653043839,-500.0,0.00015999,2]
[418957496,1774653043848,-500.0,0.00015999,2]
[418957498,1774653043857,-500.0,0.00015999,2]
[418957500,1774653043867,-500.0,0.00015999,2]
[418957502,1774653043876,-648.61477964,0.00015999,2]
[418957504,1774653043885,-500.0,0.00015999,2]
[418957506,1774653043894,-500.0,0.00015999,2]
[418957508,1774653043904,-500.0,0.00015999,2]
[418957511,1774653043914,-500.0,0.00015999,2]
[418957513,1774653043923,-500.0,0.00015999,2]
[418957514,1774653043932,-500.0,0.00015999,2]
[418957516,1774653043941,-500.0,0.00015999,2]
[418957518,1774653043950,-500.0,0.00015999,2]
[418957520,1774653043959,-500.0,0.00015999,2]
[418957522,1774653043968,-500.0,0.00015999,2]
[418957524,1774653043977,-500.0,0.00015999,2]
[418957526,1774653043986,-500.0,0.00015999,2]
[418957528,1774653043996,-500.0,0.00015999,2]
[418957530,1774653044005,-470.75659377,0.00015999,2]
[418957532,1774653044015,-615.96,0.00015999,2]
[418957534,1774653044024,-615.96,0.00015999,2]
[418957536,1774653044033,-615.96,0.00015999,2]
[418957538,1774653044042,-615.96,0.00015999,2]
[418957540,1774653044052,-615.96,0.00015999,2]
[418957542,1774653044061,-615.96,0.00015999,2]
[418957544,1774653044070,-615.96,0.00015999,2]
[418957547,1774653044079,-615.96,0.00015999,2]
[418957550,1774653044088,-615.96,0.00015999,2]
[418957552,1774653044098,-615.96,0.00015999,2]
[418957554,1774653044107,-615.96,0.00015999,2]
[418957557,1774653044116,-615.96,0.00015999,2]
[418957560,1774653044125,-615.96,0.00015999,2]
[418957562,1774653044135,-615.96,0.00015999,2]
[418957564,1774653044144,-615.96,0.00015999,2]
[418957566,1774653044153,-615.96,0.00015999,2]
[418957568,1774653044162,-615.96,0.00015999,2]
[418957570,1774653044171,-615.96,0.00015999,2]
[418957572,1774653044180,-615.96,0.00015999,2]
[418957574,1774653044189,-615.96,0.00015999,2]
[418957576,1774653044198,-616.17,0.00015999,2]
[418957578,1774653044207,-500.0,0.00015999,2]
[418957580,1774653044216,-500.0,0.00015999,2]
[418957582,1774653044225,-500.0,0.00015999,2]
[418957584,1774653044234,-500.0,0.00015999,2]
[418957586,1774653044243,-422.02555641,0.00015999,2]
[418957588,1774653044252,-580.84,0.00015999,2]
[418957590,1774653044261,-580.84,0.00015999,2]
[418957592,1774653044270,-580.84,0.00015999,2]
[418957594,1774653044279,-580.84,0.00015999,2]
[418957596,1774653044289,-580.84,0.00015999,2]
[418957598,1774653044299,-580.84,0.00015999,2]
[418957599,1774653044308,-580.84,0.00015999,2]
[418957600,1774653044317,-580.84,0.00015999,2]
[418957601,1774653044326,-580.84,0.00015999,2]
[418957602,1774653044335,-580.84,0.00015999,2]
[418957603,1774653044345,-580.84,0.00015999,2]
[418957604,1774653044354,-580.84,0.00015999,2]
[418957605,1774653044363,-580.84,0.00015999,2]
[418957606,1774653044372,-580.84,0.00015999,2]
[418957607,1774653044382,-580.84,0.00015999,2]
[418957608,1774653044392,-580.84,0.00015999,2]
[418957609,1774653044401,-580.96730924,0.00015999,2]
[418957610,1774653044411,-500.0,0.00015999,2]
[418957611,1774653044420,-500.0,0.00015999,2]
[418957612,1774653044429,-500.0,0.00015999,2]
[418957613,1774653044439,-500.0,0.00015999,2]
[418957614,1774653044448,-500.0,0.00015999,2]
[418957615,1774653044457,-500.0,0.00015999,2]
[418957616,1774653044467,-500.0,0.00015999,2]
[418957618,1774653044476,-500.0,0.00015999,2]
[418957620,1774653044485,-500.0,0.00015999,2]
[418957621,1774653044495,-500.0,0.00015999,2]
[418957623,1774653044505,-500.0,0.00015999,2]
[418957625,1774653044515,-500.0,0.00015999,2]
[418957627,1774653044524,-500.0,0.00015999,2]
[418957629,1774653044534,-500.0,0.00015999,2]
[418957630,1774653044543,-500.0,0.00015999,2]
[418957631,1774653044553,-500.0,0.00015999,2]
[418957632,1774653044562,-500.0,0.00015999,2]
[418957633,1774653044571,-500.0,0.00015999,2]
[418957634,1774653044581,-500.0,0.00015999,2]
[418957635,1774653044590,-234.62655045,0.00015999,2]
[418957636,1774653044599,-500.0,0.00015999,2]
[418957637,1774653044608,-500.0,0.00015999,2]
[418957638,1774653044617,-500.0,0.00015999,2]
[418957639,1774653044626,-500.0,0.00015999,2]
[418957640,1774653044635,-500.0,0.00015999,2]
[418957641,1774653044645,-500.0,0.00015999,2]
[418957642,1774653044654,-500.0,0.00015999,2]
[418957643,1774653044663,-500.0,0.00015999,2]
[418957644,1774653044672,-513.55432759,0.00015999,2]
[418957645,1774653044682,-500.0,0.00015999,2]
[418957646,1774653044691,-500.0,0.00015999,2]
[418957647,1774653044700,-500.0,0.00015999,2]
[418957648,1774653044710,-500.0,0.00015999,2]
[418957649,1774653044719,-500.0,0.00015999,2]
[418957650,1774653044728,-518.76747318,0.00015999,2]
[418957651,1774653044737,-713.24,0.00015999,2]
[418957652,1774653044746,-713.24,0.00015999,2]
[418957653,1774653044755,-713.24,0.00015999,2]
[418957654,1774653044764,-713.24,0.00015999,2]
[418957655,1774653044774,-713.24,0.00015999,2]
[418957656,1774653044783,-713.24,0.00015999,2]
[418957657,1774653044792,-713.24,0.00015999,2]
[418957658,1774653044802,-713.30998007,0.00015999,2]
[418957659,1774653044811,-727.73,0.00015999,2]
[418957660,1774653044820,-727.73,0.00015999,2]
[418957661,1774653044830,-727.73,0.00015999,2]
[418957662,1774653044839,-727.73,0.00015999,2]
[418957663,1774653044849,-727.73,0.00015999,2]
[418957664,1774653044859,-727.73,0.00015999,2]
[418957665,1774653044868,-727.73,0.00015999,2]
[418957666,1774653044877,-727.96396228,0.00015999,2]
[418957667,1774653044887,-576.86,0.00015999,2]
[418957668,1774653044896,-576.86,0.00015999,2]
[418957669,1774653044906,-576.86,0.00015999,2]
[418957670,1774653044916,-576.86,0.00015999,2]
[418957671,1774653044926,-576.86,0.00015999,2]
[418957672,1774653044935,-576.86,0.00015999,2]
[418957673,1774653044945,-576.86,0.00015999,2]
[418957674,1774653044954,-576.94743868,0.00015999,2]
[418957675,1774653044963,-567.15692643,0.00015999,2]